fUSD/lending_fUSD_20240301
["ID","MTS","AMOUNT","RATE_DAILY","PERIOD"]
[315938526,1709293828866,-605.26,0.00022155,2]
[315938527,1709293828893,-500.0,0.00022155,2]
[315938528,1709293828918,-3043.24709363,0.00022155,2]
[315938531,1709293831445,-4474.52290637,0.00022155,2]
[315938532,1709293831456,-1398.9910309,0.00022155,2]
[315938533,1709293831467,-121.4389691,0.00022155,2]
[315938534,1709293831477,-243.30778424,0.00022416,2]
[315938535,1709293831488,-1115.57470933,0.00022416,2]
[315938536,1709293831499,-2300.33750643,0.00022416,2]
[315938537,1709293831509,-808.72,0.00022416,2]
[315938538,1709293831519,-938.1,0.00022417,2]
[315938539,1709293831528,-500.0,0.00022417,2]
[315938540,1709293831537,-1613.1,0.00022417,2]
[315938541,1709293831546,-500.0,0.00022428,2]
[315938542,1709293831555,-500.0,0.00022429,2]
[315938543,1709293831564,-500.0,0.00022429,2]
[315938544,1709293831573,-605.26,0.00022429,2]
[315938545,1709293831582,-500.0,0.00022429,2]
[315938546,1709293831591,-7517.77,0.00022429,2]
[315938547,1709293831600,-1520.43,0.00022429,2]
[315938548,1709293831609,-7542.38236147,0.00022436,2]
[315938549,1709293831622,-4117.96503263,0.00022436,2]
[315938550,1709293833332,-500.0,0.00022155,2]
[315938551,1709293833342,-500.0,0.00022428,2]
[315938552,1709293833351,-500.0,0.00022429,2]
[315938553,1709293833360,-2644.26708576,0.00022436,2]
[315938560,1709293836278,-831.83990651,0.00022436,2]
[315938565,1709293839098,-300.32,0.00022142,2]
[315938566,1709293839435,-584.02,0.00022142,2]
[315938567,1709293839444,-653.44,0.00022142,2]
[315938568,1709293839454,-1753.24,0.00022143,2]
[315938569,1709293839464,-6202.83500002,0.00022143,2]
[315938574,1709293839508,-506.22499998,0.00022143,2]
[315938575,1709293839518,-500.0,0.00022155,2]
[315938577,1709293839528,-7431.46,0.00022155,2]
[315938578,1709293839537,-884.34,0.00022416,2]
[315938580,1709293839546,-653.44,0.00022416,2]
[315938582,1709293839555,-1753.24,0.00022417,2]
[315938584,1709293839563,-6709.06,0.00022417,2]
[315938586,1709293839573,-500.0,0.00022429,2]
[315938587,1709293839582,-7431.46,0.00022429,2]
[315938588,1709293839590,-17545.6896305,0.00022436,2]
[315938589,1709293839600,-178.39538604,0.00022439,2]
[315938590,1709293839609,-1000.0,0.00022449,3]
[315938591,1709293839618,-2753.8275224,0.00022449,3]
[315938592,1709293839627,-855.14659963,0.00022449,3]
[315938593,1709293839636,-1000.0,0.00022449,3]
[315938594,1709293839645,-573.21146798,0.00022449,3]
[315938595,1709293839654,-286.60573399,0.00022449,3]
[315938596,1709293839663,-406.83866648,0.00022449,3]
[315938597,1709293839672,-197.58453226,0.00022449,3]
[315938598,1709293839681,-3281.97591743,0.00022449,3]
[315938599,1709293839691,-697.91858159,0.00022449,3]
[315938600,1709293839700,-481.4453795,0.00022449,3]
[315938601,1709293839710,-947.99280226,0.00022449,3]
[315938602,1709293839730,-52.00719774,0.00022449,3]
[315938603,1709293839740,-229.06471754,0.00022449,3]
[315938604,1709293839749,-150.01,0.00022463,2]
[315938606,1709293839760,-174.48208368,0.00022463,2]
[315938614,1709293839941,-500.0,0.00022155,2]
[315938615,1709293839951,-696.63,0.00022416,2]
[315938616,1709293839963,-500.0,0.00022429,2]
[315938617,1709293839973,-3630.9418153,0.00022463,2]
[315938618,1709293839983,-155.0,0.00022464,2]
[315938619,1709293839993,-1212.2086095,0.00022464,2]
[315938620,1709293840002,-320.82958815,0.00022465,2]
[315938621,1709293840011,-167.61,0.00022466,2]
[315938622,1709293840021,-158.24,0.00022466,2]
[315938623,1709293840030,-157.22,0.00022466,2]
[315938624,1709293840040,-476.87,0.00022495,2]
[315938625,1709293840050,-173.89,0.00022495,2]
[315938626,1709293840059,-191.23,0.00022495,2]
[315938627,1709293840069,-155.0,0.00022496,2]
[315938628,1709293840079,-284.58560959,0.00022498,2]
[315938629,1709293840088,-1000.0,0.000225,2]
[315938630,1709293840098,-1000.0,0.000225,2]
[315938631,1709293840107,-1000.0,0.000225,2]
[315938632,1709293840117,-1000.0,0.000225,2]
[315938633,1709293840126,-389.39,0.000225,2]
[315938634,1709293840135,-150.0,0.000225,2]
[315938635,1709293840144,-150.0,0.000225,2]
[315938636,1709293840154,-200.0,0.00022505,2]
[315938637,1709293840163,-485.32997071,0.00022535,2]
[315938638,1709293840172,-500.0,0.00022535,2]
[315938639,1709293840182,-500.0,0.00022535,2]
[315938640,1709293840191,-500.0,0.00022535,2]
[315938641,1709293840201,-944.1,0.00022535,2]
[315938642,1709293840211,-500.0,0.00022535,2]
[315938643,1709293840220,-500.0,0.00022535,2]
[315938644,1709293840230,-524.19,0.00022535,2]
[315938645,1709293840239,-500.0,0.00022535,2]
[315938646,1709293840248,-500.0,0.00022535,2]
[315938647,1709293840258,-503.22,0.00022535,2]
[315938648,1709293840267,-523.637892,0.00022535,2]
[315938649,1709293840276,-500.0,0.00022535,2]
[315938650,1709293840285,-500.0,0.00022535,2]
[315938651,1709293840294,-311.96867486,0.00022535,2]
[315938652,1709293840303,-500.0,0.00022535,2]
[315938653,1709293840313,-500.0,0.00022535,2]
[315938654,1709293840322,-500.0,0.00022535,2]
[315938655,1709293840332,-500.0,0.00022535,2]
[315938656,1709293840341,-500.0,0.00022535,2]
[315938657,1709293840350,-500.0,0.00022535,2]
[315938658,1709293840359,-500.0,0.00022535,2]
[315938659,1709293840369,-595.94,0.00022535,2]
[315938660,1709293840378,-500.0,0.00022535,2]
[315938661,1709293840388,-500.0,0.00022535,2]
[315938662,1709293840397,-730.77,0.00022535,2]
[315938663,1709293840407,-584.55,0.00022535,2]
[315938664,1709293840416,-500.0,0.00022535,2]
[315938665,1709293840426,-500.0,0.00022535,2]
[315938666,1709293840435,-500.0,0.00022535,2]
[315938667,1709293840445,-759.4,0.00022535,2]
[315938668,1709293840454,-500.0,0.00022535,2]
[315938669,1709293840465,-500.0,0.00022535,2]
[315938670,1709293840475,-500.0,0.00022535,2]
[315938671,1709293840484,-500.0,0.00022535,2]
[315938672,1709293840493,-500.0,0.00022535,2]
[315938673,1709293840503,-500.0,0.00022535,2]
[315938674,1709293840512,-500.0,0.00022535,2]
[315938675,1709293840521,-506.85,0.00022535,2]
[315938676,1709293840531,-500.0,0.00022535,2]
[315938677,1709293840540,-506.82977805,0.00022535,2]
[315938678,1709293840550,-500.0,0.00022535,2]
[315938679,1709293840559,-500.0,0.00022535,2]
[315938680,1709293840568,-500.0,0.00022535,2]
[315938681,1709293840578,-563.09,0.00022535,2]
[315938682,1709293840587,-500.0,0.00022535,2]
[315938683,1709293840597,-500.0,0.00022535,2]
[315938684,1709293840607,-500.0,0.00022535,2]
[315938685,1709293840617,-500.0,0.00022535,2]
[315938686,1709293840626,-532.61401986,0.00022535,2]
[315938687,1709293840635,-500.0,0.00022535,2]
[315938688,1709293840645,-500.0,0.00022535,2]
[315938689,1709293840654,-500.0,0.00022535,2]
[315938690,1709293840664,-2000.0,0.00022535,2]
[315938691,1709293840673,-2000.0,0.00022535,2]
[315938692,1709293840683,-994.38858545,0.00022535,2]
[315938693,1709293840692,-475.11,0.00022535,2]
[315938694,1709293840702,-370.22754576,0.00022535,2]
[315938695,1709293840712,-511.30998672,0.00022535,2]
[315938696,1709293840722,-500.0,0.00022535,2]
[315938697,1709293840731,-500.0,0.00022535,2]
[315938698,1709293840740,-500.0,0.00022535,2]
[315938699,1709293840750,-500.0,0.00022535,2]
[315938700,1709293840760,-500.0,0.00022535,2]
[315938701,1709293840769,-500.0,0.00022535,2]
[315938702,1709293840779,-500.0,0.00022535,2]
[315938703,1709293840788,-500.0,0.00022535,2]
[315938704,1709293840798,-500.0,0.00022535,2]
[315938705,1709293840807,-594.72704944,0.00022535,2]
[315938706,1709293840816,-1000.0,0.00022535,30]
[315938707,1709293840828,-500.0,0.00022535,2]
[315938708,1709293840838,-500.0,0.00022535,2]
[315938709,1709293840848,-505.09108794,0.00022535,2]
[315938710,1709293840857,-500.0,0.00022535,2]
[315938711,1709293840867,-603.54,0.00022535,2]
[315938712,1709293840876,-500.0,0.00022535,2]
[315938713,1709293840886,-500.0,0.00022535,2]
[315938714,1709293840895,-500.0,0.00022535,2]
[315938715,1709293840905,-500.0,0.00022535,2]
[315938716,1709293840915,-500.0,0.00022535,2]
[315938717,1709293840925,-500.0,0.00022535,2]
[315938718,1709293840934,-500.0,0.00022535,2]
[315938719,1709293840944,-500.0,0.00022535,2]
[315938720,1709293840953,-500.0,0.00022535,2]
[315938721,1709293840963,-500.0,0.00022535,2]
[315938722,1709293840973,-500.0,0.00022535,2]
[315938723,1709293840982,-500.0,0.00022535,2]
[315938724,1709293840991,-500.0,0.00022535,2]
[315938725,1709293841001,-1092.48,0.00022535,2]
[315938726,1709293841010,-500.0,0.00022535,2]
[315938727,1709293841020,-1609.95,0.00022535,2]
[315938728,1709293841029,-430.64934172,0.00022535,2]
[315938729,1709293841039,-500.0,0.00022535,2]
[315938730,1709293841049,-500.0,0.00022535,2]
[315938731,1709293841059,-500.0,0.00022535,2]
[315938732,1709293841068,-500.0,0.00022535,2]
[315938733,1709293841078,-618.06,0.00022535,2]
[315938734,1709293841087,-502.09789261,0.00022535,2]
[315938735,1709293841097,-500.0,0.00022535,2]
[315938736,1709293841107,-500.0,0.00022535,2]
[315938737,1709293841116,-563.80331119,0.00022535,2]
[315938738,1709293841126,-500.0,0.00022535,2]
[315938739,1709293841135,-313.41503688,0.00022535,2]
[315938740,1709293841145,-500.0,0.00022535,2]
[315938741,1709293841154,-500.0,0.00022535,2]
[315938742,1709293841163,-500.0,0.00022535,2]
[315938743,1709293841173,-1130.12,0.00022535,2]
[315938744,1709293841182,-500.0,0.00022535,2]
[315938745,1709293841192,-500.0,0.00022535,2]
[315938746,1709293841201,-500.0,0.00022535,2]
[315938747,1709293841211,-500.0,0.00022535,2]
[315938748,1709293841220,-525.5,0.00022535,2]
[315938749,1709293841229,-500.0,0.00022535,2]
[315938750,1709293841239,-500.0,0.00022535,2]
[315938751,1709293841248,-500.0,0.00022535,2]
[315938752,1709293841257,-500.0,0.00022535,2]
[315938753,1709293841267,-500.0,0.00022535,2]
[315938754,1709293841276,-500.0,0.00022535,2]
[315938755,1709293841286,-500.0,0.00022535,2]
[315938756,1709293841295,-574.54916478,0.00022535,2]
[315938757,1709293841304,-500.0,0.00022535,2]
[315938758,1709293841314,-500.0,0.00022535,2]
[315938759,1709293841324,-500.0,0.00022535,2]
[315938760,1709293841334,-500.0,0.00022535,2]
[315938761,1709293841343,-1096.42,0.00022535,2]
[315938762,1709293841353,-500.0,0.00022535,2]
[315938763,1709293841363,-502.51044774,0.00022536,2]
[315938764,1709293841373,-320743.67178446,0.00022539,2]
[315938765,1709293841383,-580.80014602,0.00022539,2]
[315938766,1709293841393,-500.0,0.00022539,2]
[315938767,1709293841403,-500.0,0.00022539,2]
[315938768,1709293841412,-500.0,0.00022539,2]
[315938769,1709293841422,-500.0,0.00022539,2]
[315938770,1709293841432,-496.84172441,0.00022539,2]
[315938771,1709293841442,-500.0,0.00022539,2]
[315938772,1709293841452,-316.12627489,0.00022539,2]
[315938773,1709293841462,-500.0,0.00022539,2]
[315938774,1709293841472,-500.0,0.00022539,2]
[315938775,1709293841482,-500.0,0.00022539,2]
[315938776,1709293841491,-371.9469602,0.00022539,2]
[315938777,1709293841501,-555.84668581,0.00022539,2]
[315938778,1709293841510,-500.0,0.00022539,2]
[315938779,1709293841520,-500.0,0.00022539,2]
[315938780,1709293841529,-500.0,0.00022539,2]
[315938781,1709293841539,-500.0,0.00022539,2]
[315938782,1709293841548,-500.0,0.00022539,2]
[315938783,1709293841558,-205.58637642,0.00022539,2]
[315938784,1709293841567,-354.29481834,0.00022539,2]
[315938785,1709293841577,-500.0,0.00022539,2]
[315938786,1709293841586,-160.88926986,0.00022539,2]
[315938787,1709293841596,-478.58254382,0.00022539,2]
[315938788,1709293841605,-398.57476315,0.00022539,2]
[315938789,1709293841614,-469.57242894,0.00022539,2]
[315938790,1709293841624,-500.0,0.00022539,2]
[315938791,1709293841633,-201.39205373,0.00022539,2]
[315938792,1709293841643,-500.0,0.00022539,2]
[315938793,1709293841652,-173.43783279,0.00022539,2]
[315938794,1709293841661,-163.0164011,0.00022539,2]
[315938795,1709293841671,-500.0,0.00022539,2]
[315938796,1709293841680,-194.93479948,0.00022539,2]
[315938797,1709293841690,-500.0,0.00022539,2]
[315938798,1709293841700,-500.0,0.00022539,2]
[315938799,1709293841710,-500.0,0.00022539,2]
[315938800,1709293841720,-174.50587273,0.00022539,2]
[315938801,1709293841730,-217.64537402,0.00022539,2]
[315938802,1709293841739,-151.13495125,0.00022548,2]
[315938803,1709293841748,-3414.45420769,0.00022591,2]
[315938804,1709293841757,-178.39538601,0.00022593,2]
[315938805,1709293841767,-150.0,0.000226,2]
[315938806,1709293841777,-150.0,0.000226,2]
[315938807,1709293841786,-158.24,0.00022603,2]
[315938808,1709293841797,-1020.5820799,0.00022603,2]
[315938809,1709293841806,-1452.96447896,0.00022604,2]
[315938810,1709293841816,-155.19928272,0.0002261,2]
[315938811,1709293841828,-476.87,0.0002261,2]
[315938812,1709293841839,-173.89,0.0002261,2]
[315938813,1709293841849,-191.23,0.0002261,2]
[315938814,1709293841858,-1452.96447896,0.00022637,2]
[315938815,1709293841867,-1452.96447896,0.0002267,2]
[315938816,1709293841878,-689.14,0.0002269,2]
[315938817,1709293841887,-500.0,0.0002269,2]
[315938818,1709293841897,-500.0,0.0002269,2]
[315938819,1709293841957,-1445.28,0.0002269,2]
[315938820,1709293841968,-4672.8,0.0002269,2]
[315938821,1709293841977,-557.02,0.0002269,2]
[315938822,1709293841986,-726.26,0.0002269,2]
[315938823,1709293841996,-500.0,0.0002269,2]
[315938824,1709293842006,-699.74,0.0002269,2]
[315938825,1709293842015,-661.47,0.0002269,2]
[315938826,1709293842025,-500.0,0.0002269,2]
[315938827,1709293842034,-591.58,0.0002269,2]
[315938828,1709293842043,-500.0,0.0002269,2]
[315938829,1709293842052,-1375.63,0.0002269,2]
[315938830,1709293842061,-500.0,0.0002269,2]
[315938831,1709293842071,-575.89,0.0002269,2]
[315938832,1709293842080,-1001.98,0.0002269,2]
[315938833,1709293842089,-1212.18,0.0002269,2]
[315938834,1709293842098,-500.0,0.0002269,2]
[315938835,1709293842108,-718.91,0.0002269,2]
[315938836,1709293842117,-5359.82,0.0002269,2]
[315938837,1709293842126,-1182.74,0.0002269,2]
[315938838,1709293842135,-4100.89,0.0002269,2]
[315938839,1709293842145,-1729.04,0.0002269,2]
[315938840,1709293842154,-3659.22,0.0002269,2]
[315938841,1709293842163,-808.72,0.0002269,2]
[315938842,1709293842172,-884.34,0.0002269,2]
[315938843,1709293842181,-653.44,0.0002269,2]
[315938844,1709293842190,-696.63,0.0002269,2]
[315938845,1709293842199,-500.0,0.00022691,2]
[315938846,1709293842209,-500.0,0.00022691,2]
[315938847,1709293842220,-500.0,0.00022691,2]
[315938848,1709293842230,-500.0,0.00022691,2]
[315938849,1709293842239,-500.0,0.00022691,2]
[315938850,1709293842249,-500.0,0.00022691,2]
[315938851,1709293842258,-172.16348185,0.00022691,2]
[315938852,1709293842267,-1775.34,0.00022691,2]
[315938853,1709293842276,-870.44,0.00022691,2]
[315938854,1709293842285,-500.0,0.00022691,2]
[315938855,1709293842294,-564.0,0.00022691,2]
[315938857,1709293842303,-1495.23,0.00022691,2]
[315938859,1709293842312,-500.0,0.00022691,2]
[315938861,1709293842321,-1435.86,0.00022691,2]
[315938863,1709293842330,-548.6,0.00022691,2]
[315938865,1709293842339,-16010.36,0.00022691,2]
[315938867,1709293842348,-2696.62,0.00022691,2]
[315938869,1709293842357,-867.17,0.00022691,2]
[315938871,1709293842366,-500.0,0.00022691,2]
[315938875,1709293842376,-1217.46,0.00022691,2]
[315938879,1709293842386,-789.59,0.00022691,2]
[315938883,1709293842395,-500.0,0.00022691,2]
[315938886,1709293842403,-500.0,0.00022691,2]
[315938890,1709293842413,-500.0,0.00022691,2]
[315938894,1709293842422,-500.0,0.00022691,2]
[315938898,1709293842431,-1102.83,0.00022691,2]
[315938901,1709293842441,-500.0,0.00022691,2]
[315938905,1709293842450,-622.43,0.00022691,2]
[315938909,1709293842459,-796.11,0.00022691,2]
[315938913,1709293842470,-891.54,0.00022691,2]
[315938916,1709293842479,-500.0,0.00022691,2]
[315938918,1709293842489,-827.08,0.00022691,2]
[315938920,1709293842498,-2978.43,0.00022691,2]
[315938921,1709293842508,-500.0,0.00022691,2]
[315938922,1709293842516,-1724.89,0.00022691,2]
[315938924,1709293842525,-2335.66,0.00022691,2]
[315938926,1709293842535,-1170.98,0.00022691,2]
[315938928,1709293842544,-541.41,0.00022691,2]
[315938930,1709293842553,-675.81,0.00022691,2]
[315938932,1709293842562,-1479.67,0.00022691,2]
[315938934,1709293842571,-1181.14,0.00022691,2]
[315938935,1709293842581,-521.6,0.00022691,2]
[315938936,1709293842590,-597.46,0.00022691,2]
[315938938,1709293842599,-1109.77,0.00022691,2]
[315938939,1709293842609,-1171.99,0.00022691,2]
[315938940,1709293842618,-938.1,0.00022691,2]
[315938941,1709293842628,-500.0,0.00022691,2]
[315938942,1709293842638,-1613.1,0.00022691,2]
[315938943,1709293842647,-1753.24,0.00022691,2]
[315938944,1709293842656,-6709.06,0.00022691,2]
[315938945,1709293842666,-500.0,0.00022692,2]
[315938946,1709293842675,-776.58,0.00022692,2]
[315938947,1709293842684,-500.0,0.00022692,2]
[315938948,1709293842693,-500.0,0.00022692,2]
[315938949,1709293842702,-500.0,0.00022692,2]
[315938950,1709293842713,-500.0,0.00022692,2]
[315938951,1709293842723,-500.0,0.00022692,2]
[315938952,1709293842732,-500.0,0.00022692,2]
[315938953,1709293842742,-500.0,0.00022692,2]
[315938954,1709293842752,-500.0,0.00022692,2]
[315938955,1709293842762,-500.0,0.00022692,2]
[315938956,1709293842771,-500.0,0.00022692,2]
[315938957,1709293842780,-740.64,0.00022692,2]
[315938958,1709293842790,-500.0,0.00022692,2]
[315938959,1709293842800,-500.0,0.00022692,2]
[315938960,1709293842809,-500.0,0.00022692,2]
[315938961,1709293842819,-620.59,0.00022692,2]
[315938962,1709293842830,-500.0,0.00022692,2]
[315938963,1709293842840,-458.53584948,0.00022692,2]
[315938964,1709293842849,-547.9,0.00022692,2]
[315938965,1709293842859,-500.0,0.00022692,2]
[315938966,1709293842868,-500.0,0.00022692,2]
[315938967,1709293842877,-500.0,0.00022692,2]
[315938968,1709293842887,-500.0,0.00022692,2]
[315938969,1709293842896,-500.0,0.00022692,2]
[315938970,1709293842905,-500.0,0.00022692,2]
[315938972,1709293842914,-500.0,0.00022692,2]
[315938974,1709293842924,-500.0,0.00022692,2]
[315938976,1709293842933,-500.0,0.00022692,2]
[315938977,1709293842942,-500.0,0.00022692,2]
[315938979,1709293842952,-500.0,0.00022692,2]
[315938980,1709293842962,-500.0,0.00022692,2]
[315938981,1709293842971,-500.0,0.00022692,2]
[315938982,1709293842980,-520.84694316,0.00022692,2]
[315938983,1709293842990,-280.25,0.00022692,2]
[315938984,1709293842999,-500.0,0.00022692,2]
[315938985,1709293843008,-500.0,0.00022692,2]
[315938986,1709293843016,-500.0,0.00022692,2]
[315938987,1709293843026,-578.75,0.00022692,2]
[315938988,1709293843036,-500.0,0.00022692,2]
[315938989,1709293843045,-500.0,0.00022692,2]
[315938990,1709293843056,-500.0,0.00022692,2]
[315938991,1709293843065,-500.0,0.00022692,2]
[315938992,1709293843074,-500.0,0.00022692,2]
[315938993,1709293843084,-500.0,0.00022692,2]
[315938994,1709293843093,-526.78,0.00022692,2]
[315938995,1709293843103,-500.0,0.00022692,2]
[315938996,1709293843112,-500.0,0.00022692,2]
[315938997,1709293843122,-500.0,0.00022692,2]
[315938998,1709293843131,-500.0,0.00022692,2]
[315939000,1709293843140,-500.0,0.00022692,2]
[315939002,1709293843149,-500.0,0.00022692,2]
[315939004,1709293843158,-500.0,0.00022692,2]
[315939006,1709293843167,-561.63,0.00022692,2]
[315939008,1709293843177,-433.43,0.00022692,2]
[315939010,1709293843187,-519.7466511,0.00022692,2]
[315939012,1709293843196,-811.76,0.00022692,2]
[315939014,1709293843205,-500.0,0.00022692,2]
[315939015,1709293843217,-613.48336108,0.00022692,2]
[315939018,1709293843227,-500.0,0.00022692,2]
[315939019,1709293843237,-500.0,0.00022692,2]
[315939020,1709293843246,-646.74,0.00022692,2]
[315939021,1709293843256,-152.0,0.00022702,3]
[315939022,1709293843265,-500.0,0.00022702,2]
[315939023,1709293843274,-500.0,0.00022702,2]
[315939024,1709293843283,-500.0,0.00022702,2]
[315939025,1709293843292,-1452.96447896,0.00022702,2]
[315939026,1709293843301,-500.0,0.00022703,2]
[315939027,1709293843311,-509.55,0.00022703,2]
[315939028,1709293843320,-374.1111382,0.00022703,2]
[315939029,1709293843330,-500.0,0.00022703,2]
[315939030,1709293843339,-500.0,0.00022703,2]
[315939031,1709293843348,-500.0,0.00022703,2]
[315939032,1709293843357,-500.0,0.00022703,2]
[315939033,1709293843366,-500.0,0.00022703,2]
[315939034,1709293843375,-500.0,0.00022703,2]
[315939035,1709293843384,-500.0,0.00022703,2]
[315939036,1709293843393,-643.81,0.00022703,2]
[315939037,1709293843402,-500.0,0.00022703,2]
[315939038,1709293843411,-500.0,0.00022703,2]
[315939039,1709293843420,-500.0,0.00022703,2]
[315939040,1709293843429,-500.0,0.00022703,2]
[315939041,1709293843439,-500.0,0.00022703,2]
[315939042,1709293843448,-500.0,0.00022703,2]
[315939043,1709293843457,-500.0,0.00022703,2]
[315939044,1709293843468,-500.0,0.00022703,2]
[315939045,1709293843477,-823.01,0.00022703,2]
[315939046,1709293843486,-592.07,0.00022703,2]
[315939047,1709293843495,-500.0,0.00022703,2]
[315939048,1709293843505,-500.0,0.00022703,2]
[315939049,1709293843513,-500.0,0.00022703,2]
[315939050,1709293843523,-500.0,0.00022703,2]
[315939051,1709293843532,-500.0,0.00022703,2]
[315939052,1709293843541,-500.0,0.00022703,2]
[315939053,1709293843550,-500.0,0.00022703,2]
[315939054,1709293843559,-500.0,0.00022703,2]
[315939055,1709293843567,-500.0,0.00022703,2]
[315939056,1709293843576,-500.0,0.00022703,2]
[315939057,1709293843585,-500.0,0.00022703,2]
[315939058,1709293843594,-500.0,0.00022703,2]
[315939059,1709293843603,-500.0,0.00022703,2]
[315939060,1709293843612,-500.0,0.00022703,2]
[315939061,1709293843621,-752.37,0.00022703,2]
[315939062,1709293843630,-500.0,0.00022703,2]
[315939063,1709293843640,-500.0,0.00022703,2]
[315939064,1709293843649,-500.0,0.00022703,2]
[315939065,1709293843657,-500.0,0.00022703,2]
[315939066,1709293843667,-526.94,0.00022703,2]
[315939067,1709293843676,-885.5,0.00022703,2]
[315939068,1709293843685,-500.0,0.00022703,2]
[315939069,1709293843694,-500.0,0.00022703,2]
[315939070,1709293843703,-500.0,0.00022703,2]
[315939071,1709293843713,-500.0,0.00022703,2]
[315939072,1709293843722,-500.0,0.00022703,2]
[315939073,1709293843731,-150.0,0.00022703,2]
[315939074,1709293843740,-500.0,0.00022703,2]
[315939075,1709293843750,-500.0,0.00022703,2]
[315939076,1709293843759,-500.0,0.00022703,2]
[315939077,1709293843768,-500.0,0.00022703,2]
[315939078,1709293843777,-568.68,0.00022703,2]
[315939079,1709293843786,-500.0,0.00022703,2]
[315939080,1709293843796,-500.0,0.00022703,2]
[315939081,1709293843805,-840.38,0.00022703,2]
[315939082,1709293843815,-500.0,0.00022703,2]
[315939083,1709293843825,-500.0,0.00022703,2]
[315939084,1709293843834,-505.71,0.00022703,2]
[315939085,1709293843847,-500.0,0.00022703,2]
[315939086,1709293843857,-587.74,0.00022703,2]
[315939087,1709293843866,-500.0,0.00022703,2]
[315939088,1709293843876,-601.38,0.00022703,2]
[315939089,1709293843886,-500.0,0.00022703,2]
[315939090,1709293843896,-500.0,0.00022703,2]
[315939091,1709293843905,-356.56663772,0.00022703,2]
[315939092,1709293843916,-523.29,0.00022703,2]
[315939093,1709293843926,-500.0,0.00022703,2]
[315939094,1709293843935,-500.0,0.00022703,2]
[315939095,1709293843945,-929.18,0.00022703,2]
[315939096,1709293843954,-500.0,0.00022703,2]
[315939097,1709293843964,-613.98,0.00022703,2]
[315939098,1709293843973,-500.0,0.00022703,2]
[315939099,1709293843982,-500.0,0.00022703,2]
[315939100,1709293843991,-1029.46,0.00022703,2]
[315939101,1709293844000,-2708.89,0.00022703,2]
[315939102,1709293844009,-500.0,0.00022703,2]
[315939103,1709293844018,-1283.68,0.00022703,2]
[315939104,1709293844027,-571.12774403,0.00022703,2]
[315939105,1709293844036,-500.0,0.00022703,2]
[315939106,1709293844045,-500.0,0.00022703,2]
[315939107,1709293844055,-1407.91,0.00022703,2]
[315939108,1709293844064,-500.0,0.00022703,2]
[315939109,1709293844073,-605.54,0.00022703,2]
[315939110,1709293844082,-540.94,0.00022703,2]
[315939111,1709293844091,-500.0,0.00022703,2]
[315939112,1709293844101,-1256.91,0.00022703,2]
[315939113,1709293844110,-500.0,0.00022703,2]
[315939114,1709293844119,-1686.36,0.00022703,2]
[315939115,1709293844128,-764.64,0.00022703,2]
[315939116,1709293844138,-178.8,0.00022703,2]
[315939117,1709293844146,-2363.31,0.00022703,2]
[315939118,1709293844155,-1597.33,0.00022703,2]